bitfinex/quotes_BTCUSD_20250512
["timestamp","ask_amount","ask_price","bid_price","bid_amount"]
[1747081704412,0.00998353,102270.0,102260.0,1.41466085]
[1747081704633,0.00020636,102270.0,102260.0,1.41066085]
[1747081704899,0.00020636,102270.0,102260.0,1.42766085]
[1747081705135,0.00020636,102270.0,102260.0,1.77201336]
[1747081705344,0.00020636,102270.0,102260.0,1.42766085]
[1747081706170,0.00020636,102270.0,102260.0,1.77201336]
[1747081706577,0.00020636,102270.0,102260.0,2.11201336]
[1747081707304,0.00020636,102270.0,102260.0,2.10082435]
[1747081707687,0.00020636,102270.0,102260.0,2.00497005]
[1747081710430,0.00020636,102270.0,102260.0,2.0195109]
[1747081713426,0.00020636,102270.0,102260.0,2.06501015]
[1747081715031,0.0254914,102280.0,102270.0,0.5877786]
[1747081715264,0.0254914,102280.0,102270.0,1.13627157]
[1747081715482,0.0254914,102280.0,102270.0,1.65408454]
[1747081715892,0.0254914,102280.0,102270.0,2.05408454]
[1747081716352,0.2,102290.0,102280.0,1.29607263]
[1747081716583,0.2,102290.0,102280.0,1.81440693]
[1747081717010,0.2,102290.0,102280.0,2.21440693]
[1747081717226,0.2,102290.0,102280.0,2.30967054]
[1747081717440,0.2,102290.0,102280.0,2.33711641]
[1747081718611,0.2,102290.0,102280.0,2.34911641]
[1747081720880,0.2,102290.0,102280.0,2.36370492]
[1747081727340,0.00094092,102300.0,102290.0,1.29145566]
[1747081727557,0.00094092,102300.0,102290.0,1.77834996]
[1747081728050,0.00094092,102300.0,102290.0,1.87420426]
[1747081728261,0.00094092,102300.0,102290.0,2.28874511]
[1747081728654,0.00094092,102300.0,102290.0,2.30074511]
[1747081730154,0.00094092,102300.0,102290.0,2.31774511]
[1747081730375,0.00094092,102300.0,102290.0,1.55298332]
[1747081730553,0.00094092,102300.0,102290.0,1.84788902]
[1747081730712,0.00094092,102300.0,102290.0,2.19186996]
[1747081731350,0.00094092,102300.0,102290.0,2.20165691]
[1747081732694,0.00094092,102300.0,102290.0,1.81089691]
[1747081732908,0.00094092,102300.0,102290.0,2.29719121]
[1747081733367,0.00094092,102300.0,102290.0,2.31239121]
[1747081735569,0.01071532,102300.0,102290.0,1.30391503]
[1747081735786,0.01734092,102300.0,102290.0,1.84197597]
[1747081737457,0.00094092,102300.0,102290.0,1.96481157]
[1747081737664,0.05696221,102310.0,102300.0,0.2331718]
[1747081737908,0.04767596,102310.0,102300.0,0.68468834]
[1747081738119,0.04620906,102310.0,102300.0,0.70783957]
[1747081738326,0.04620906,102310.0,102300.0,1.10783957]
[1747081738931,0.04620906,102310.0,102300.0,0.6331718]
[1747081739149,0.05598298,102310.0,102300.0,1.08868834]
[1747081739587,0.0657571,102310.0,102300.0,1.08868834]
[1747081739807,0.23192022,102310.0,102300.0,0.60842403]
[1747081740029,0.23192022,102310.0,102300.0,1.03946089]
[1747081740252,0.23192022,102310.0,102300.0,1.05901093]
[1747081740471,0.23192022,102310.0,102300.0,1.06878581]
[1747081740691,0.24832022,102310.0,102300.0,0.66878581]
[1747081740931,0.26816139,102310.0,102300.0,0.4341823]
[1747081741157,0.2385462,102310.0,102300.0,0.4341823]
[1747081741401,0.2385462,102310.0,102300.0,0.3564158]
[1747081741619,0.2385462,102310.0,102300.0,0.5524958]
[1747081741851,0.22877208,102310.0,102300.0,0.004]
[1747081742065,0.32462638,102310.0,102300.0,0.004]
[1747081742274,0.32462638,102310.0,102300.0,0.01234403]
[1747081742671,0.32462638,102310.0,102300.0,0.004]
[1747081742884,0.32462638,102310.0,102300.0,0.01234403]
[1747081743358,0.33377159,102310.0,102300.0,0.004]
[1747081743779,0.32854159,102310.0,102300.0,0.004]
[1747081766486,0.85437722,102310.0,102300.0,0.004]
[1747081769316,0.62854159,102310.0,102300.0,0.004]
[1747081769537,0.63857042,102310.0,102300.0,0.004]
[1747081770018,0.62854159,102310.0,102300.0,0.004]
[1747081772093,0.61214159,102310.0,102300.0,0.004]
[1747081772314,0.62668244,102310.0,102300.0,0.004]
[1747081772519,0.92724159,102310.0,102300.0,0.004]
[1747081772691,1.11888159,102310.0,102300.0,0.004]
[1747081778127,1.10378159,102310.0,102300.0,0.004]
[1747081780546,1.11958159,102310.0,102300.0,0.004]
[1747081783118,1.10378159,102310.0,102300.0,0.004]
[1747081784469,1.40378159,102310.0,102300.0,0.004]
[1747081784968,0.61214159,102310.0,102300.0,0.004]
[1747081785196,0.79229159,102310.0,102300.0,0.0194]
[1747081787178,0.79229159,102310.0,102300.0,0.0349]
[1747081787940,0.79229159,102310.0,102300.0,0.0194]
[1747081789127,0.60097159,102310.0,102300.0,0.0194]
[1747081789352,0.20511729,102310.0,102300.0,0.52292326]
[1747081789566,0.20511729,102310.0,102300.0,0.71106885]
[1747081789965,0.20511729,102310.0,102300.0,0.48523322]
[1747081791031,0.19597208,102310.0,102300.0,0.48523322]
[1747081791244,0.19597208,102310.0,102300.0,0.04434403]
[1747081791911,0.28682638,102310.0,102300.0,0.02774403]
[1747081792133,0.60192638,102310.0,102300.0,0.01234403]
[1747081792339,0.79308638,102310.0,102300.0,0.01234403]
[1747081792588,0.79308638,102310.0,102300.0,0.004]
[1747081793200,0.80224264,102310.0,102300.0,0.01234403]
[1747081793436,0.80224264,102310.0,102300.0,0.004]
[1747081793623,0.80224264,102310.0,102300.0,0.01234403]
[1747081794477,0.80224264,102310.0,102300.0,0.004]
[1747081794698,1.10674487,102310.0,102300.0,0.004]
[1747081794915,1.53427827,102310.0,102300.0,0.004]
[1747081795372,1.30844264,102310.0,102300.0,0.004]
[1747081795590,0.50527839,102300.0,102290.0,0.00834403]
[1747081795799,0.60113269,102300.0,102290.0,0.02404403]
[1747081796214,0.61028895,102300.0,102290.0,0.02404403]
[1747081796634,0.61028895,102300.0,102290.0,0.02804403]
[1747081797036,0.31028895,102300.0,102290.0,0.02804403]
[1747081797418,0.31028895,102300.0,102290.0,0.04444403]
[1747081797656,0.31028895,102300.0,102290.0,0.0361]
[1747081797848,0.31028895,102300.0,102290.0,0.02804403]
[1747081800593,0.61028895,102300.0,102290.0,0.02804403]
[1747081800953,0.61028895,102300.0,102290.0,0.04424403]
[1747081801368,0.22420953,102300.0,102290.0,0.23976656]
[1747081801587,0.21443465,102300.0,102290.0,0.59375506]
[1747081801805,0.21443465,102300.0,102290.0,0.39823253]
[1747081802012,0.23398451,102300.0,102290.0,0.59375487]
[1747081802241,0.00915626,102300.0,102290.0,1.14922704]
[1747081802457,0.00915626,102300.0,102290.0,0.80501466]
[1747081802674,0.00977335,102310.0,102300.0,0.2640718]
[1747081802675,0.0195468,102310.0,102300.0,0.2640718]
[1747081802885,0.04886866,102310.0,102300.0,1.19952437]
[1747081803098,0.04886847,102310.0,102300.0,1.20929887]
[1747081803310,0.04886924,102310.0,102300.0,0.80929887]
[1747081803505,0.0293211,102310.0,102300.0,0.80929887]
[1747081803715,0.01954709,102310.0,102300.0,0.80929887]
[1747081804028,0.02932101,102310.0,102300.0,0.80929887]
[1747081804221,0.02932092,102310.0,102300.0,0.80929887]
[1747081804957,0.22500885,102320.0,102310.0,0.21503206]
[1747081805082,0.22515196,102320.0,102310.0,0.59948847]
[1747081805295,0.01991293,102320.0,102310.0,0.60926201]
[1747081805503,0.01991293,102320.0,102310.0,0.59948847]
[1747081805504,0.23492455,102320.0,102310.0,0.59948847]
[1747081805712,0.23492455,102320.0,102310.0,0.59948866]
[1747081805924,0.22515196,102320.0,102310.0,0.04024403]
[1747081806138,0.21537909,102320.0,102310.0,0.0175]
[1747081806357,0.40701909,102320.0,102310.0,0.0175]
[1747081806582,0.40701909,102320.0,102310.0,0.001]
[1747081806583,0.81927339,102320.0,102310.0,0.001]
[1747081807011,0.82841573,102320.0,102310.0,0.001]
[1747081807434,0.51201573,102320.0,102310.0,0.001]
[1747081807638,0.51201573,102320.0,102310.0,0.017]
[1747081809451,0.31123339,102320.0,102310.0,0.001]
[1747081809678,1.81880577,102320.0,102310.0,0.001]
[1747081809919,1.72334662,102320.0,102310.0,0.001]
[1747081810134,1.21366919,102320.0,102310.0,0.001]
[1747081811438,1.13500259,102320.0,102310.0,0.001]
[1747081811735,1.14414444,102320.0,102310.0,0.001]
[1747081817166,0.60717206,102320.0,102310.0,0.001]
[1747081817381,1.07371206,102320.0,102310.0,0.001]
[1747081817592,1.26615206,102320.0,102310.0,0.001]
[1747081817813,1.26980324,102320.0,102310.0,0.001]
[1747081819407,1.61036444,102320.0,102310.0,0.001]
[1747081822503,1.63636444,102320.0,102310.0,0.001]
[1747081825370,1.29215206,102320.0,102310.0,0.001]
[1747081825578,1.63636444,102320.0,102310.0,0.001]
[1747081825810,1.62036444,102320.0,102310.0,0.001]
[1747081828415,1.23628444,102320.0,102310.0,0.001]
[1747081828620,1.63614444,102320.0,102310.0,0.001]
[1747081829641,1.62044444,102320.0,102310.0,0.001]
[1747081830432,1.63614444,102320.0,102310.0,0.001]
[1747081831120,2.31934444,102320.0,102310.0,0.001]
[1747081831328,2.36807444,102320.0,102310.0,0.001]
[1747081831535,2.35727662,102320.0,102310.0,0.001]
[1747081831760,2.46027662,102320.0,102310.0,0.001]
[1747081831962,2.56027662,102320.0,102310.0,0.001]
[1747081832552,2.56527662,102320.0,102310.0,0.001]
[1747081832755,3.092131,102320.0,102310.0,0.001]
[1747081832964,3.11955595,102320.0,102310.0,0.001]
[1747081833133,3.12755595,102320.0,102310.0,0.001]
[1747081833588,2.77534357,102320.0,102310.0,0.001]
[1747081833995,2.78334357,102320.0,102310.0,0.002]
[1747081834217,2.78334357,102320.0,102310.0,0.001]
[1747081834415,3.13355595,102320.0,102310.0,0.002]
[1747081834795,3.12255595,102320.0,102310.0,0.001]
[1747081835014,3.13155595,102320.0,102310.0,0.002]
[1747081835409,2.44313119,102320.0,102310.0,0.002]
[1747081835617,2.60470157,102320.0,102310.0,0.002]
[1747081835826,1.92650157,102320.0,102310.0,0.002]
[1747081836027,1.54234157,102320.0,102310.0,0.002]
[1747081836231,1.89871662,102320.0,102310.0,0.002]
[1747081836857,1.51491662,102320.0,102310.0,0.002]
[1747081837131,1.41710577,102320.0,102310.0,0.002]
[1747081837349,1.06318973,102320.0,102310.0,0.002]
[1747081837520,1.08194296,102320.0,102310.0,0.0172]
[1747081837919,1.42194296,102320.0,102310.0,0.0172]
[1747081838127,1.08194296,102320.0,102310.0,0.002]
[1747081838363,1.43804296,102320.0,102310.0,0.002]
[1747081838973,1.05388296,102320.0,102310.0,0.002]
[1747081839148,1.42178296,102320.0,102310.0,0.0185]
[1747081839862,1.42178296,102320.0,102310.0,0.002]
[1747081840530,1.07757058,102320.0,102310.0,0.002]
[1747081840763,1.13399461,102320.0,102310.0,0.0347]
[1747081841019,1.11945376,102320.0,102310.0,0.0347]
[1747081841232,1.65205376,102320.0,102310.0,0.0347]
[1747081859462,1.65125376,102320.0,102310.0,0.0347]
[1747081862083,1.70998376,102320.0,102310.0,0.0347]
[1747081862289,1.65125376,102320.0,102310.0,0.0347]
[1747081863165,1.65782699,102320.0,102310.0,0.002]
[1747081863366,2.04300296,102320.0,102310.0,0.002]
[1747081863579,2.10173296,102320.0,102310.0,0.002]
[1747081863785,2.20807699,102320.0,102310.0,0.002]
[1747081864017,0.81509514,102280.0,102270.0,0.07759925]
[1747081864229,1.10258944,102280.0,102270.0,0.06149925]
[1747081865311,1.11749191,102280.0,102270.0,0.06149925]
[1747081865483,1.11754059,102280.0,102270.0,0.06149925]
[1747081865658,1.46175297,102280.0,102270.0,0.04949925]
[1747081866010,1.46175297,102280.0,102270.0,0.05649925]
[1747081866200,1.11754059,102280.0,102270.0,0.05649925]
[1747081866663,1.11754059,102280.0,102270.0,0.04932081]
[1747081867072,1.12254059,102280.0,102270.0,0.04532081]
[1747081867284,1.13054059,102280.0,102270.0,0.04632081]
[1747081867491,1.13054059,102280.0,102270.0,0.06242081]
[1747081867698,1.13054059,102280.0,102270.0,0.0171]
[1747081868438,1.1402837,102280.0,102270.0,0.0171]
[1747081869653,1.48449608,102280.0,102270.0,0.0671]
[1747081870881,1.82449608,102280.0,102270.0,0.0671]
[1747081874025,1.82449608,102280.0,102270.0,0.051]
[1747081874609,1.52449608,102280.0,102270.0,0.051]
[1747081876021,1.52449608,102280.0,102270.0,0.0665]
[1747081879357,1.1802837,102280.0,102270.0,0.0665]
[1747081880274,1.1802837,102280.0,102270.0,0.0827]
[1747081882288,1.2886437,102280.0,102270.0,0.0827]
[1747081882498,0.92399812,102280.0,102270.0,0.42691238]
[1747081882649,0.22814382,102280.0,102270.0,0.62247315]
[1747081882875,0.03260159,102280.0,102270.0,1.01414016]
[1747081883080,0.04237848,102280.0,102270.0,1.01414016]
[1747081883282,0.05215546,102280.0,102270.0,0.66992778]
[1747081883887,0.05215546,102280.0,102270.0,1.07808409]
[1747081884102,0.01304868,102280.0,102270.0,1.07808409]
[1747081884415,0.0228249,102280.0,102270.0,1.01414016]
[1747081884622,0.04237801,102280.0,102270.0,1.01414016]
[1747081884843,0.04237801,102280.0,102270.0,0.66992778]
[1747081885053,0.03437801,102280.0,102270.0,0.66892778]
[1747081885259,0.02937801,102280.0,102270.0,0.66892778]
[1747081885445,0.03037801,102280.0,102270.0,0.68392778]
[1747081887147,0.03037791,102280.0,102270.0,0.68392778]
[1747081887587,0.03037791,102280.0,102270.0,1.08392778]
[1747081887776,0.04015461,102280.0,102270.0,1.08392778]
[1747081888799,0.03037791,102280.0,102270.0,1.08392778]
[1747081889703,0.03037791,102280.0,102270.0,0.50504403]
[1747081889704,0.2161442,102280.0,102270.0,0.50504403]
[1747081889926,0.2161442,102280.0,102270.0,0.84925641]
[1747081890175,0.2161442,102280.0,102270.0,0.44925641]
[1747081892643,0.2161442,102280.0,102270.0,0.3006048]
[1747081892835,0.2161442,102280.0,102270.0,0.64481718]
[1747081893133,0.2161442,102280.0,102270.0,0.65459521]
[1747081894359,0.2161442,102280.0,102270.0,0.44925641]
[1747081895721,0.2161442,102280.0,102270.0,0.64481718]
[1747081895938,0.19659033,102280.0,102270.0,0.44925641]
[1747081898083,0.19659033,102280.0,102270.0,0.0967]
[1747081898290,0.19659033,102280.0,102270.0,0.44091238]
[1747081898501,0.19659033,102280.0,102270.0,0.44925641]
[1747081901289,0.19659033,102280.0,102270.0,0.44925641]
[1747081906265,0.19659033,102280.0,102270.0,0.45903444]
[1747081906482,0.19659033,102280.0,102270.0,0.44925641]
[1747081907115,0.19659033,102280.0,102270.0,0.45903444]
[1747081907319,0.19659033,102280.0,102270.0,0.65459521]
[1747081907522,0.19659033,102280.0,102270.0,0.44925641]
[1747081910133,0.19659033,102280.0,102270.0,0.65459521]
[1747081910544,0.19659033,102280.0,102270.0,0.66437315]
[1747081912658,0.19659033,102280.0,102270.0,0.65459521]
[1747081912865,0.19659033,102280.0,102270.0,0.66437305]
[1747081913080,0.19659033,102280.0,102270.0,0.65459521]
[1747081913288,0.19659033,102280.0,102270.0,0.66437305]
[1747081913499,0.19659033,102280.0,102270.0,0.65459521]
[1747081914127,0.2164315,102280.0,102270.0,0.10504403]
[1747081914339,0.19659033,102280.0,102270.0,0.44925641]
[1747081914521,0.19659033,102280.0,102270.0,0.66437315]
[1747081915409,0.19659033,102280.0,102270.0,0.54608022]
[1747081915860,0.19659033,102280.0,102270.0,0.33096348]
[1747081916040,0.19659033,102280.0,102270.0,0.34074151]
[1747081917081,0.19659033,102280.0,102270.0,0.53630228]
[1747081917493,0.19659033,102280.0,102270.0,0.54608022]
[1747081919349,0.19659033,102280.0,102270.0,0.55585806]
[1747081919985,0.19659033,102280.0,102270.0,0.54608022]
[1747081920633,0.19659033,102280.0,102270.0,0.55585806]
[1747081921403,0.19659033,102280.0,102270.0,0.54751403]
[1747081921621,0.19659033,102280.0,102270.0,0.55585806]
[1747081921883,0.19659033,102280.0,102270.0,0.54608022]
[1747081924607,0.19659033,102280.0,102270.0,0.33096348]
[1747081924828,0.19659033,102280.0,102270.0,0.53630228]
[1747081926196,0.19659033,102280.0,102270.0,0.54608003]
[1747081926415,0.19659033,102280.0,102270.0,0.54608022]
[1747081928167,0.00104868,102280.0,102270.0,0.80133243]
[1747081928382,0.0108249,102280.0,102270.0,0.80133243]
[1747081928589,0.00104868,102280.0,102270.0,1.82830673]
[1747081931021,0.00104868,102280.0,102270.0,1.8199627]
[1747081931362,0.00104868,102280.0,102270.0,1.82830673]
[1747081931787,0.01082499,102280.0,102270.0,1.82830673]
[1747081931998,0.00104868,102280.0,102270.0,1.82830673]
[1747081932687,0.0108249,102280.0,102270.0,1.82830673]
[1747081933088,0.00104868,102280.0,102270.0,1.82830673]
[1747081933344,0.00104868,102280.0,102270.0,2.06480435]
[1747081936648,0.00104868,102280.0,102270.0,2.05502699]
[1747081936877,0.21614401,102280.0,102270.0,0.64033229]
[1747081937097,0.21614401,102280.0,102270.0,0.85544884]
[1747081937296,0.21614401,102280.0,102270.0,0.87500415]
[1747081937502,0.21614401,102280.0,102270.0,0.86522659]
[1747081937701,0.21614401,102280.0,102270.0,0.829471]
[1747081937951,0.19659033,102280.0,102270.0,0.829471]
[1747081938146,0.19659033,102280.0,102270.0,0.82947109]
[1747081938349,0.19659033,102280.0,102270.0,0.63000706]
[1747081938663,0.19659033,102280.0,102270.0,0.63835109]
[1747081939546,0.19659033,102280.0,102270.0,0.43301229]
[1747081942376,0.19659033,102280.0,102270.0,0.42466826]
[1747081942607,0.19659033,102280.0,102270.0,0.43301229]
[1747081942843,0.21269033,102280.0,102270.0,0.07334403]
[1747081943080,0.21269033,102280.0,102270.0,0.065]
[1747081943320,0.21269033,102280.0,102270.0,0.07334403]
[1747081943552,0.21269033,102280.0,102270.0,0.065]
[1747081943781,0.60854463,102280.0,102270.0,0.065]
[1747081944005,0.62374463,102280.0,102270.0,0.065]
[1747081948328,0.59244463,102280.0,102270.0,0.0801]
[1747081948550,0.78352463,102280.0,102270.0,0.0801]
[1747081949139,0.79912463,102280.0,102270.0,0.0801]
[1747081949368,0.8189658,102280.0,102270.0,0.0801]
[1747081949544,0.60804463,102280.0,102270.0,0.065]
[1747081949723,0.79912463,102280.0,102270.0,0.065]
[1747081950643,0.60804463,102280.0,102270.0,0.065]
[1747081950851,0.79912463,102280.0,102270.0,0.065]
[1747081951250,0.81572463,102280.0,102270.0,0.065]
[1747081951646,0.62464463,102280.0,102270.0,0.065]
[1747081951849,0.81572463,102280.0,102270.0,0.065]
[1747081953049,0.62464463,102280.0,102270.0,0.065]
[1747081953253,0.81572463,102280.0,102270.0,0.065]
[1747081954013,0.51572463,102280.0,102270.0,0.065]
[1747081954219,1.19063762,102280.0,102270.0,0.065]
[1747081954388,1.68171762,102280.0,102270.0,0.065]
[1747081955052,1.45572463,102280.0,102270.0,0.065]
[1747081955263,1.26464463,102280.0,102270.0,0.065]
[1747081955479,1.73912463,102280.0,102270.0,0.065]
[1747081955689,1.73812463,102280.0,102270.0,0.05]
[1747081955881,1.74112463,102280.0,102270.0,0.05]
[1747081956084,1.39552463,102280.0,102270.0,0.066]
[1747081956456,0.60444463,102280.0,102270.0,0.066]
[1747081956658,0.90444463,102280.0,102270.0,0.066]
[1747081956849,0.79552463,102280.0,102270.0,0.29199299]
[1747081957247,0.50859033,102280.0,102270.0,0.29199299]
[1747081957449,0.50859033,102280.0,102270.0,0.30799299]
[1747081957450,0.39967033,102280.0,102270.0,0.30799299]
[1747081957650,0.20859033,102280.0,102270.0,0.30799299]
[1747081958467,0.03255272,102280.0,102270.0,0.61795503]
[1747081958687,0.013,102280.0,102270.0,1.18394802]
[1747081958899,0.03255272,102280.0,102270.0,1.37498802]
[1747081959143,0.02277622,102280.0,102270.0,1.37498802]
[1747081959348,0.03255272,102280.0,102270.0,1.37498802]
[1747081959552,0.02955272,102280.0,102270.0,1.37498802]
[1747081959780,0.02955272,102280.0,102270.0,1.77498802]
[1747081959994,0.03155272,102280.0,102270.0,1.77498802]
[1747081960369,0.012,102280.0,102270.0,1.77498802]
[1747081960575,0.002,102280.0,102270.0,1.77398802]
[1747081960910,0.01,102280.0,102270.0,1.77498802]
[1747081961242,0.01,102280.0,102270.0,2.0112337]
[1747081961473,0.01,102280.0,102270.0,2.12162885]
[1747081961915,0.01,102280.0,102270.0,2.54418885]
[1747081962338,0.09821416,102310.0,102290.0,0.21364201]
[1747081962563,0.30347259,102310.0,102300.0,0.59961313]
[1747081962774,0.30347259,102310.0,102300.0,0.58983835]
[1747081962986,0.29369895,102310.0,102300.0,0.59961332]
[1747081963192,0.28392503,102310.0,102300.0,0.59961332]
[1747081963404,0.28392503,102310.0,102300.0,0.60924977]
[1747081963617,0.28492503,102310.0,102300.0,0.60924977]
[1747081963830,0.28492503,102310.0,102300.0,0.61902465]
[1747081964595,0.02054795,102310.0,102300.0,1.07854406]
[1747081964803,0.21503226,102310.0,102300.0,0.97291526]
[1747081965003,0.22603226,102310.0,102300.0,0.63957412]
[1747081965219,0.011,102310.0,102300.0,0.63957355]
[1747081965436,0.011,102310.0,102300.0,1.51472938]
[1747081965638,0.011,102310.0,102300.0,1.61058368]
[1747081965890,0.011,102310.0,102300.0,1.70643798]
[1747081966485,0.009,102310.0,102300.0,1.70643798]
[1747081966604,0.01,102310.0,102300.0,1.71743798]
[1747081966810,0.001,102310.0,102300.0,2.11643798]
[1747081967121,0.001,102310.0,102300.0,2.12243798]
[1747081969378,0.00473378,102310.0,102300.0,2.13697883]
[1747081969582,0.02954317,102330.0,102320.0,0.26522785]
[1747081969787,0.02954317,102330.0,102320.0,1.0393679]
[1747081969788,0.01,102330.0,102320.0,1.0393679]
[1747081970019,0.01,102330.0,102320.0,1.3793679]
[1747081970217,0.01,102330.0,102320.0,1.83387888]
[1747081970504,0.00976925,102360.0,102350.0,0.21494803]
[1747081970728,0.01439986,102370.0,102360.0,0.21038882]
[1747081970945,0.20976959,102370.0,102360.0,0.90838982]
[1747081971121,0.20976959,102370.0,102360.0,0.36041583]
[1747081971366,0.20976959,102370.0,102360.0,0.56557409]
[1747081971566,0.20976959,102370.0,102360.0,0.36041583]
[1747081971769,0.20991593,102370.0,102360.0,0.0163]
[1747081971976,0.20991593,102370.0,102360.0,0.36041583]
[1747081972405,0.0145462,102370.0,102360.0,1.23994579]
[1747081972627,0.02431401,102370.0,102360.0,1.23994579]
[1747081972835,0.21906338,102370.0,102360.0,0.94602868]
[1747081973052,0.21906338,102370.0,102360.0,0.02464403]
[1747081973269,0.21906338,102370.0,102360.0,0.36875986]
[1747081973472,0.21906338,102370.0,102360.0,0.76028158]
[1747081973645,0.21906338,102370.0,102360.0,0.75193755]
[1747081973854,0.21906338,102370.0,102360.0,0.37840158]
[1747081974063,0.21906338,102370.0,102360.0,0.76028158]
[1747081975074,0.21906338,102370.0,102360.0,0.77005102]
[1747081975304,0.21906338,102370.0,102360.0,0.85613588]
[1747081975856,0.21906338,102370.0,102360.0,1.10439741]
[1747081976247,0.21906338,102370.0,102360.0,1.11416685]
[1747081976477,0.21906338,102370.0,102360.0,0.76028158]
[1747081976700,0.21906338,102370.0,102360.0,0.77005102]
[1747081976904,0.21906338,102370.0,102360.0,1.00097833]
[1747081977118,0.21906338,102370.0,102360.0,1.02448548]
[1747081977359,0.21906281,102370.0,102360.0,1.00089833]
[1747081977565,0.21906281,102370.0,102360.0,1.35478321]
[1747081977777,0.23859958,102370.0,102360.0,1.34501416]
[1747081977972,0.23859958,102370.0,102360.0,1.35478341]
[1747081978149,0.23859958,102370.0,102360.0,1.06883771]
[1747081978354,0.23859958,102370.0,102360.0,1.45063771]
[1747081978553,0.2288311,102370.0,102360.0,1.46040667]
[1747081978794,0.00415736,102370.0,102360.0,1.460406]
[1747081979024,0.01392508,102370.0,102360.0,1.49595374]
[1747081979225,0.01392498,102370.0,102360.0,1.49595374]
[1747081979564,0.01392508,102370.0,102360.0,1.49595374]
[1747081979768,0.00415736,102370.0,102360.0,1.93180804]
[1747081980398,0.00415736,102370.0,102360.0,1.96266148]
[1747081980604,0.00415736,102370.0,102360.0,2.36266148]
[1747081980826,0.00415736,102370.0,102360.0,2.33180804]
[1747081981046,0.00415736,102370.0,102360.0,2.33880804]
[1747081981268,0.00415736,102370.0,102360.0,2.34380804]
[1747081982473,0.01178871,102390.0,102380.0,0.00834403]
[1747081982676,0.0020229,102390.0,102380.0,0.74166728]
[1747081982879,0.22665352,102390.0,102380.0,0.55939986]
[1747081983133,0.20511799,102380.0,102370.0,0.34411583]
[1747081983272,0.20513802,102370.0,102360.0,0.22082172]
[1747081983615,0.21490622,102370.0,102360.0,1.09248623]
[1747081983821,0.21490622,102370.0,102360.0,1.52852482]
[1747081984020,0.01953611,102370.0,102360.0,1.56376264]
[1747081984233,0.00976676,102380.0,102370.0,0.24951806]
[1747081984438,0.21688714,102390.0,102380.0,0.22465276]
[1747081984646,0.21688714,102390.0,102380.0,0.55900135]
[1747081984854,0.01178881,102390.0,102380.0,0.56573401]
[1747081985050,0.01178881,102390.0,102380.0,0.71493378]
[1747081985051,0.0020229,102390.0,102380.0,0.71493378]
[1747081985398,0.0020229,102390.0,102380.0,1.19171258]
[1747081986219,0.0020229,102390.0,102380.0,0.78910574]
[1747081986665,0.01178862,102390.0,102380.0,0.78910574]
[1747081986890,0.0020229,102390.0,102380.0,1.85614157]
[1747081987095,0.0020229,102390.0,102380.0,1.82677828]
[1747081987319,0.0020229,102390.0,102380.0,1.85914157]
[1747081987540,0.0020229,102390.0,102380.0,1.95499587]
[1747081987999,0.0020229,102390.0,102380.0,1.85906157]
[1747081988221,0.01178881,102390.0,102380.0,1.69058245]
[1747081988447,0.0020229,102390.0,102380.0,1.88266245]
[1747081988657,0.23641905,102390.0,102380.0,1.23050148]
[1747081988872,0.21688733,102390.0,102380.0,0.35211583]
[1747081989086,0.21688733,102390.0,102380.0,0.55253986]
[1747081989222,0.23338733,102390.0,102380.0,0.008]
[1747081990267,0.24878733,102390.0,102380.0,0.008]
[1747081990444,0.64464163,102390.0,102380.0,0.008]
[1747081990673,1.42362088,102390.0,102380.0,0.008]
[1747081991153,1.61570088,102390.0,102380.0,0.008]
[1747081991367,2.41796912,102390.0,102380.0,0.008]
[1747081991816,2.41796912,102390.0,102320.0,0.06412422]
[1747081991817,0.1954461,102330.0,102320.0,0.06412422]
[1747081992032,0.21499041,102330.0,102320.0,0.78127822]
[1747081992240,0.21499041,102330.0,102320.0,0.79119743]
[1747081992392,0.21499041,102330.0,102320.0,0.5907734]
[1747081992606,0.21499041,102330.0,102320.0,0.35403543]
[1747081992804,0.21499041,102330.0,102320.0,0.55784466]
[1747081993032,0.21499041,102330.0,102320.0,0.34426217]
[1747081993033,0.2052183,102330.0,102320.0,0.34426217]
[1747081993236,0.1954461,102330.0,102320.0,0.38526217]
[1747081993442,0.1954461,102330.0,102320.0,0.39503543]
[1747081993759,0.1954461,102330.0,102320.0,0.59827379]
[1747081993996,0.1954461,102330.0,102320.0,0.05814634]
[1747081994209,0.1954461,102330.0,102320.0,0.40226217]
[1747081994656,0.1954461,102330.0,102320.0,0.05814634]
[1747081994869,0.5913004,102330.0,102320.0,0.05814634]
[1747081995093,0.6079004,102330.0,102320.0,0.05814634]
[1747081997232,0.5913004,102330.0,102320.0,0.40226217]
[1747081997436,0.1954461,102330.0,102320.0,0.59772737]
[1747081997635,0.79544404,102340.0,102330.0,0.20521764]
[1747081997636,0.01954183,102340.0,102330.0,0.20521764]
[1747081997868,0.02931279,102340.0,102330.0,0.92133726]
[1747081998075,0.03908328,102340.0,102330.0,0.59302152]
[1747081998282,0.02931213,102340.0,102330.0,0.59302152]
[1747081998440,0.23451105,102340.0,102330.0,0.59864989]
[1747081998641,0.23451105,102340.0,102330.0,0.58324989]
[1747081999099,0.20719835,102340.0,102330.0,0.57870596]
[1747081999298,0.20719835,102340.0,102330.0,0.58847807]
[1747081999532,0.20719835,102340.0,102330.0,0.59825008]
[1747081999706,0.0313127,102340.0,102330.0,0.63379344]
[1747081999915,0.2267397,102340.0,102330.0,0.63379344]
[1747082000087,0.0313127,102340.0,102330.0,0.63379344]
[1747082000286,0.04108395,102340.0,102330.0,0.62402181]
[1747082000843,0.01177049,102340.0,102330.0,0.73398402]
[1747082001024,0.01177068,102340.0,102330.0,1.07809985]
[1747082001211,0.01177068,102340.0,102330.0,0.73398402]
[1747082001414,0.02154155,102340.0,102330.0,0.64949344]
[1747082001634,0.002,102340.0,102330.0,0.64949344]
[1747082002583,0.01177049,102340.0,102330.0,0.99360927]
[1747082002793,0.02154117,102340.0,102330.0,0.99360927]
[1747082003020,0.002,102340.0,102330.0,1.08946357]
[1747082003294,0.002,102340.0,102330.0,1.53985872]
[1747082003654,0.002,102340.0,102330.0,1.93985872]
[1747082005506,0.002,102340.0,102330.0,1.93902872]
[1747082007581,0.002,102340.0,102330.0,2.13126872]
[1747082008796,0.002,102340.0,102330.0,2.03541442]
[1747082009367,0.02154145,102340.0,102330.0,1.67663793]
[1747082009580,0.01177058,102340.0,102330.0,1.67663793]
[1747082009792,0.002,102340.0,102330.0,1.67663793]
[1747082009998,0.01177049,102340.0,102330.0,2.02075376]
[1747082010218,0.002,102340.0,102330.0,2.02075376]
[1747082011491,0.002,102340.0,102330.0,2.11660806]
[1747082011692,0.002,102340.0,102330.0,2.13114891]